{"text_format":"3","workbook":"xlsx","n_sheets":1,"sheets":["Bevásárlólista"],"not_rendered":{"images":1,"external_links":1,"defined_names":3},"read":"whole","date_system":"1900"}

{"sheet":"Bevásárlólista","index":0,"n_rows":31,"n_cols":8,"rows_kept":31,"merged":[[1,1,1,2]]}
[null,"Bevásárlólista"]
[null,"DÁTUM"]
[null,"Megvéve?","Tétel","Kategória","Mennyiség","Ár","Teljes ár","Márka/megjegyzések"]
[null,null,"Narancs","Termény",null,null,{"$f":"IFERROR(SUM(Bevásárlólista[Mennyiség]*Bevásárlólista[Ár]), \"\")","v":{"v":0,"d":"0.00 Ft"}}]
[null,null,"Alma","Termény",null,null,{"$f":"IFERROR(SUM(Bevásárlólista[Mennyiség]*Bevásárlólista[Ár]), \"\")","v":{"v":0,"d":"0.00 Ft"}}]
[null,null,"Banán","Termény",null,null,{"$f":"IFERROR(SUM(Bevásárlólista[Mennyiség]*Bevásárlólista[Ár]), \"\")","v":{"v":0,"d":"0.00 Ft"}}]
[null,null,"Saláta","Termény",null,null,{"$f":"IFERROR(SUM(Bevásárlólista[Mennyiség]*Bevásárlólista[Ár]), \"\")","v":{"v":0,"d":"0.00 Ft"}}]
[null,null,"Paradicsom","Termény",null,null,{"$f":"IFERROR(SUM(Bevásárlólista[Mennyiség]*Bevásárlólista[Ár]), \"\")","v":{"v":0,"d":"0.00 Ft"}},"  "]
[null,null,"Tej ","Tejtermék",null,null,{"$f":"IFERROR(SUM(Bevásárlólista[Mennyiség]*Bevásárlólista[Ár]), \"\")","v":{"v":0,"d":"0.00 Ft"}}]
[null,null,"Sajt","Tejtermék",null,null,{"$f":"IFERROR(SUM(Bevásárlólista[Mennyiség]*Bevásárlólista[Ár]), \"\")","v":{"v":0,"d":"0.00 Ft"}}]
[null,null,"Tojás","Tejtermék",null,null,{"$f":"IFERROR(SUM(Bevásárlólista[Mennyiség]*Bevásárlólista[Ár]), \"\")","v":{"v":0,"d":"0.00 Ft"}}]
[null,null,"Túró","Tejtermék",null,null,{"$f":"IFERROR(SUM(Bevásárlólista[Mennyiség]*Bevásárlólista[Ár]), \"\")","v":{"v":0,"d":"0.00 Ft"}}]
[null,null,"Marhahús","Húsáru",null,null,{"$f":"IFERROR(SUM(Bevásárlólista[Mennyiség]*Bevásárlólista[Ár]), \"\")","v":{"v":0,"d":"0.00 Ft"}}]
[null,null,"Szárnyashús","Húsáru",null,null,{"$f":"IFERROR(SUM(Bevásárlólista[Mennyiség]*Bevásárlólista[Ár]), \"\")","v":{"v":0,"d":"0.00 Ft"}}]
[null,null,"Sonka","Húsáru",null,null,{"$f":"IFERROR(SUM(Bevásárlólista[Mennyiség]*Bevásárlólista[Ár]), \"\")","v":{"v":0,"d":"0.00 Ft"}}]
[null,null,"Gyümölcslé","Ital",null,null,{"$f":"IFERROR(SUM(Bevásárlólista[Mennyiség]*Bevásárlólista[Ár]), \"\")","v":{"v":0,"d":"0.00 Ft"}}]
[null,null,"Kávé","Ital",null,null,{"$f":"IFERROR(SUM(Bevásárlólista[Mennyiség]*Bevásárlólista[Ár]), \"\")","v":{"v":0,"d":"0.00 Ft"}}]
[null,null,"Tea","Ital",null,null,{"$f":"IFERROR(SUM(Bevásárlólista[Mennyiség]*Bevásárlólista[Ár]), \"\")","v":{"v":0,"d":"0.00 Ft"}}]
[null,null,"Víz","Ital",null,null,{"$f":"IFERROR(SUM(Bevásárlólista[Mennyiség]*Bevásárlólista[Ár]), \"\")","v":{"v":0,"d":"0.00 Ft"}}]
[null,null,"Száraztészta","Tészta",null,null,{"$f":"IFERROR(SUM(Bevásárlólista[Mennyiség]*Bevásárlólista[Ár]), \"\")","v":{"v":0,"d":"0.00 Ft"}}]
[null,null,"Rizs","Tészta",null,null,{"$f":"IFERROR(SUM(Bevásárlólista[Mennyiség]*Bevásárlólista[Ár]), \"\")","v":{"v":0,"d":"0.00 Ft"}}]
[null,null,"Konzervek","Leves",null,null,{"$f":"IFERROR(SUM(Bevásárlólista[Mennyiség]*Bevásárlólista[Ár]), \"\")","v":{"v":0,"d":"0.00 Ft"}}]
[null,null,"Magkeverék","Leves",null,null,{"$f":"IFERROR(SUM(Bevásárlólista[Mennyiség]*Bevásárlólista[Ár]), \"\")","v":{"v":0,"d":"0.00 Ft"}}]
[null,null,"Kenyér","Pékáru",null,null,{"$f":"IFERROR(SUM(Bevásárlólista[Mennyiség]*Bevásárlólista[Ár]), \"\")","v":{"v":0,"d":"0.00 Ft"}}]
[null,null,"Chips","Nasi",null,null,{"$f":"IFERROR(SUM(Bevásárlólista[Mennyiség]*Bevásárlólista[Ár]), \"\")","v":{"v":0,"d":"0.00 Ft"}}]
[null,null,"Perec","Nasi",null,null,{"$f":"IFERROR(SUM(Bevásárlólista[Mennyiség]*Bevásárlólista[Ár]), \"\")","v":{"v":0,"d":"0.00 Ft"}}]
[null,null,"Jégkrém","Nasi",null,null,{"$f":"IFERROR(SUM(Bevásárlólista[Mennyiség]*Bevásárlólista[Ár]), \"\")","v":{"v":0,"d":"0.00 Ft"}}]
[null,null,"Süti","Nasi",null,null,{"$f":"IFERROR(SUM(Bevásárlólista[Mennyiség]*Bevásárlólista[Ár]), \"\")","v":{"v":0,"d":"0.00 Ft"}}]
[null,null,"Papírtányérok","Kellékek",null,null,{"$f":"IFERROR(SUM(Bevásárlólista[Mennyiség]*Bevásárlólista[Ár]), \"\")","v":{"v":0,"d":"0.00 Ft"}}]
[null,null,"Szalvéta","Kellékek",null,null,{"$f":"IFERROR(SUM(Bevásárlólista[Mennyiség]*Bevásárlólista[Ár]), \"\")","v":{"v":0,"d":"0.00 Ft"}}]
[{"$nulls":6},{"$f":"SUBTOTAL(109,Bevásárlólista[Teljes ár])","v":{"v":0,"d":"0.00 Ft"}}]